fUSD/lending_fUSD_20251120
["ID","MTS","AMOUNT","RATE_DAILY","PERIOD"]
[394537065,1763675967540,-314.0,0.00052055,120]
[394537066,1763675967575,-314.0,0.00052055,120]
[394537067,1763675967610,-314.0,0.00052055,120]
[394537068,1763675967645,-314.0,0.00052055,120]
[394537069,1763675967680,-314.0,0.00052055,120]
[394537070,1763675967713,-314.0,0.00052055,120]
[394537071,1763675967747,-314.0,0.00052055,120]
[394537072,1763675967781,-314.0,0.00052055,120]
[394537073,1763675967814,-314.0,0.00052055,120]
[394537074,1763675967846,-314.0,0.00052055,120]
[394537075,1763675967878,-314.0,0.00052055,120]
[394537076,1763675967911,-314.0,0.00052055,120]
[394537077,1763675967943,-314.0,0.00052055,120]
[394537078,1763675967974,-314.0,0.00052055,120]
[394537079,1763675968008,-314.0,0.00052055,120]
[394537080,1763675968043,-314.0,0.00052055,120]
[394537081,1763675968077,-314.0,0.00052055,120]
[394537082,1763675968114,-314.0,0.00052055,120]
[394537083,1763675968149,-314.0,0.00052055,120]
[394537084,1763675968184,-1096.0,0.00052055,30]
[394537085,1763675968218,-1096.0,0.00052055,30]
[394537086,1763675968256,-10000.0,0.000522,120]
[394537087,1763675968294,-152.0,0.000522,120]
[394537088,1763675968332,-500.0,0.00052328,120]
[394537089,1763675968368,-226.25,0.00052328,120]
[394537090,1763675968402,-500.0,0.00052328,120]
[394537091,1763675968434,-500.0,0.00052328,120]
[394537092,1763675968467,-500.0,0.00052328,120]
[394537093,1763675968499,-500.0,0.00052328,120]
[394537094,1763675968531,-500.0,0.00052328,120]
[394537095,1763675968564,-631.21205444,0.00052328,120]
[394537096,1763675968599,-761.49,0.00052328,120]
[394537097,1763675968633,-503.59,0.00052328,120]
[394537098,1763675968669,-500.0,0.00052328,120]
[394537099,1763675968700,-503.36186972,0.00052328,120]
[394537100,1763675968732,-500.0,0.00052328,120]
[394537101,1763675968763,-424.46247281,0.00052328,120]
[394537102,1763675968795,-530.20660795,0.00052328,120]
[394537103,1763675968826,-542.81170426,0.00052328,120]
[394537104,1763675968857,-500.0,0.00052328,120]
[394537105,1763675968888,-500.0,0.00052328,120]
[394537106,1763675968920,-434.38977425,0.00052328,120]
[394537107,1763675968953,-493.3,0.00052328,120]
[394537108,1763675968985,-500.0,0.00052328,120]
[394537109,1763675969018,-500.0,0.00052328,120]
[394537110,1763675969051,-467.58437238,0.00052328,120]
[394537111,1763675969084,-500.0,0.00052328,120]
[394537112,1763675969119,-400.0,0.00052328,120]
[394537113,1763675969153,-400.0,0.00052328,120]
[394537114,1763675969190,-400.0,0.00052328,120]
[394537115,1763675969226,-422.61141288,0.00052328,120]
[394537116,1763675969263,-500.0,0.00052328,120]
[394537117,1763675969300,-579.16,0.00052328,120]
[394537118,1763675969339,-500.0,0.00052328,120]
[394537119,1763675969375,-501.568691,0.00052328,120]
[394537120,1763675969412,-400.0,0.00052328,120]
[394537121,1763675969445,-422.37,0.00052328,120]
[394537122,1763675969477,-318.10533395,0.00052328,120]
[394537123,1763675969509,-300.0,0.00052328,120]
[394537124,1763675969543,-500.0,0.00052328,120]
[394537125,1763675969576,-404.36907363,0.00052328,120]
[394537126,1763675969734,-422.82592717,0.00052328,120]
[394537127,1763675969767,-500.0,0.00052328,120]
[394537128,1763675969797,-500.0,0.00052328,120]
[394537129,1763675969829,-500.0,0.00052328,120]
[394537130,1763675969862,-400.0,0.00052328,120]
[394537131,1763675969894,-217.85,0.00052328,120]
[394537132,1763675969925,-517.92,0.00052328,120]
[394537133,1763675969956,-284.72,0.00052328,120]
[394537134,1763675969986,-330.3595468,0.00052328,120]
[394537135,1763675970019,-296.25,0.00052328,120]
[394537136,1763675970053,-300.0,0.00052328,120]
[394537137,1763675970087,-300.0,0.00052328,120]
[394537138,1763675970121,-415.2139029,0.00052328,120]
[394537139,1763675970156,-230.83029837,0.00052328,120]
[394537140,1763675970190,-500.0,0.00052328,120]
[394537141,1763675970225,-336.80899659,0.00052328,120]
[394537142,1763675970262,-500.0,0.00052328,120]
[394537143,1763675970300,-366.42669619,0.00052328,120]
[394537144,1763675970337,-169.69475747,0.00052328,120]
[394537145,1763675970370,-320.18229958,0.00052328,120]
[394537146,1763675970403,-500.0,0.00052328,120]
[394537147,1763675970438,-300.0,0.00052328,120]
[394537148,1763675970474,-428.39278065,0.00052328,120]
[394537149,1763675970509,-300.0,0.00052328,120]
[394537150,1763675970543,-544.31,0.00052328,120]
[394537151,1763675970576,-481.58,0.00052328,120]
[394537152,1763675970611,-333.24714593,0.00052328,120]
[394537153,1763675970646,-579.30230945,0.00052328,120]
[394537154,1763675970678,-500.0,0.00052328,120]
[394537155,1763675970710,-300.0,0.00052328,120]
[394537156,1763675970741,-326.86673344,0.00052328,120]
[394537157,1763675970773,-364.32,0.00052328,120]
[394537158,1763675970805,-376.5873367,0.00052328,120]
[394537159,1763675970836,-500.0,0.00052328,120]
[394537160,1763675970867,-223.53303141,0.00052328,120]
[394537161,1763675970899,-326.75938186,0.00052328,120]
[394537162,1763675970929,-300.0,0.00052328,120]
[394537163,1763675970961,-500.0,0.00052328,120]
[394537164,1763675970992,-500.0,0.00052328,120]
[394537165,1763675971022,-400.0,0.00052328,120]
[394537166,1763675971055,-571.59,0.00052328,120]
[394537167,1763675971088,-300.0,0.00052328,120]
[394537168,1763675971123,-324.05565106,0.00052328,120]
[394537169,1763675971156,-419.78,0.00052328,120]
[394537170,1763675971188,-300.0,0.00052328,120]
[394537171,1763675971220,-502.82,0.00052328,120]
[394537172,1763675971253,-336.19,0.00052328,120]
[394537173,1763675971285,-500.0,0.00052328,120]
[394537174,1763675971319,-500.0,0.00052328,120]
[394537175,1763675971355,-500.0,0.00052328,120]
[394537176,1763675971391,-500.0,0.00052328,120]
[394537177,1763675971426,-352.08,0.00052328,120]
[394537178,1763675971458,-300.0,0.00052328,120]
[394537179,1763675971489,-314.19071159,0.00052328,120]
[394537180,1763675971521,-548.48,0.00052328,120]
[394537181,1763675971552,-500.0,0.00052328,120]
[394537182,1763675971583,-205.5523586,0.00052328,120]
[394537183,1763675971616,-500.0,0.00052328,120]
[394537184,1763675971646,-362.3356279,0.00052328,120]
[394537185,1763675971678,-500.0,0.00052328,120]
[394537186,1763675971711,-500.0,0.00052328,120]
[394537187,1763675971746,-500.0,0.00052328,120]
[394537188,1763675971779,-483.37,0.00052328,120]
[394537189,1763675971811,-500.0,0.00052328,120]
[394537190,1763675971845,-500.0,0.00052328,120]
[394537191,1763675971876,-400.0,0.00052328,120]
[394537192,1763675971908,-500.0,0.00052328,120]
[394537193,1763675971938,-180.44,0.00052328,120]
[394537194,1763675971969,-500.0,0.00052328,120]
[394537195,1763675972001,-579.84,0.00052328,120]
[394537196,1763675972034,-500.0,0.00052328,120]
[394537197,1763675972066,-500.0,0.00052328,120]
[394537198,1763675972101,-500.0,0.00052328,120]
[394537199,1763675972137,-500.0,0.00052328,120]
[394537200,1763675972174,-500.0,0.00052328,120]
[394537201,1763675972208,-500.0,0.00052328,120]
[394537202,1763675972243,-300.0,0.00052328,120]
[394537203,1763675972279,-500.0,0.00052328,120]
[394537204,1763675972317,-167.95,0.00052328,120]
[394537205,1763675972358,-500.0,0.00052328,120]
[394537206,1763675972396,-500.0,0.00052328,120]
[394537207,1763675972555,-500.0,0.00052328,120]
[394537208,1763675972595,-500.0,0.00052328,120]
[394537209,1763675972635,-485.07,0.00052328,120]
[394537210,1763675972672,-500.0,0.00052328,120]
[394537211,1763675972710,-616.30037411,0.00052328,120]
[394537212,1763675972744,-245.3,0.00052328,120]
[394537213,1763675972775,-500.0,0.00052328,120]
[394537214,1763675972805,-300.0,0.00052328,120]
[394537215,1763675972837,-500.0,0.00052328,120]
[394537216,1763675972868,-557.78505961,0.00052328,120]
[394537217,1763675972900,-500.0,0.00052328,120]
[394537218,1763675972935,-500.0,0.00052328,120]
[394537219,1763675972966,-544.62204529,0.00052328,120]
[394537220,1763675972999,-500.0,0.00052328,120]
[394537221,1763675973032,-500.0,0.00052328,120]
[394537222,1763675973064,-561.26,0.00052328,120]
[394537223,1763675973095,-416.2,0.00052328,120]
[394537224,1763675973127,-317.39359827,0.00052328,120]
[394537225,1763675973160,-389.06881355,0.00052328,120]
[394537226,1763675973193,-310.51894322,0.00052328,120]
[394537227,1763675973226,-500.0,0.00052328,120]
[394537228,1763675973259,-500.0,0.00052328,120]
[394537229,1763675973292,-500.0,0.00052328,120]
[394537230,1763675973326,-562.61878149,0.00052328,120]
[394537231,1763675973361,-509.46141162,0.00052328,120]
[394537232,1763675973395,-202.98599027,0.00052328,120]
[394537233,1763675973429,-400.0,0.00052328,120]
[394537234,1763675973462,-500.0,0.00052328,120]
[394537235,1763675973495,-500.0,0.00052328,120]
[394537236,1763675973527,-500.0,0.00052328,120]
[394537237,1763675973560,-582.75,0.00052328,120]
[394537238,1763675973595,-649.5,0.00052328,120]
[394537239,1763675973631,-500.0,0.00052328,120]
[394537240,1763675973664,-500.0,0.00052328,120]
[394537241,1763675973699,-530.06772786,0.00052328,120]
[394537242,1763675973730,-223.91434408,0.00052328,120]
[394537243,1763675973763,-500.0,0.00052328,120]
[394537244,1763675973796,-645.91,0.00052328,120]
[394537245,1763675973829,-500.0,0.00052328,120]
[394537246,1763675973861,-500.0,0.00052328,120]
[394537247,1763675973892,-500.0,0.00052328,120]
[394537248,1763675973924,-500.0,0.00052328,120]
[394537249,1763675973954,-300.0,0.00052328,120]
[394537250,1763675973985,-500.0,0.00052328,120]
[394537251,1763675974016,-539.88,0.00052328,120]
[394537252,1763675974048,-500.0,0.00052328,120]
[394537253,1763675974081,-500.0,0.00052328,120]
[394537254,1763675974113,-500.0,0.00052328,120]
[394537255,1763675974146,-323.27106091,0.00052328,120]
[394537256,1763675974180,-500.0,0.00052328,120]
[394537257,1763675974214,-500.0,0.00052328,120]
[394537258,1763675974249,-500.0,0.00052328,120]
[394537259,1763675974286,-400.0,0.00052328,120]
[394537260,1763675974326,-300.0,0.00052328,120]
[394537261,1763675974364,-500.0,0.00052328,120]
[394537262,1763675974402,-500.0,0.00052328,120]
[394537263,1763675974441,-500.0,0.00052328,120]
[394537264,1763675974477,-644.62,0.00052328,120]
[394537265,1763675974514,-500.0,0.00052328,120]
[394537266,1763675974550,-617.68989486,0.00052328,120]
[394537267,1763675974584,-500.0,0.00052328,120]
[394537268,1763675974617,-500.0,0.00052328,120]
[394537269,1763675974650,-500.0,0.00052328,120]
[394537270,1763675974686,-500.0,0.00052328,120]
[394537271,1763675974719,-500.0,0.00052328,120]
[394537272,1763675974763,-500.0,0.00052328,120]
[394537273,1763675974800,-500.0,0.00052328,120]
[394537274,1763675974837,-500.0,0.00052328,120]
[394537275,1763675974871,-500.0,0.00052328,120]
[394537276,1763675974905,-500.0,0.00052328,120]
[394537277,1763675974936,-500.0,0.00052328,120]
[394537278,1763675974967,-500.0,0.00052328,120]
[394537279,1763675975002,-500.0,0.00052328,120]
[394537280,1763675975036,-407.42809773,0.00052328,120]
[394537281,1763675975068,-500.0,0.00052328,120]
[394537282,1763675975101,-500.0,0.00052328,120]
[394537283,1763675975134,-500.0,0.00052328,120]
[394537284,1763675975168,-500.0,0.00052328,120]
[394537285,1763675975199,-500.0,0.00052328,120]
[394537286,1763675975358,-500.0,0.00052328,120]
[394537287,1763675975395,-411.4697239,0.00052328,120]
[394537288,1763675975432,-500.0,0.00052328,120]
[394537289,1763675975467,-480.36,0.00052328,120]
[394537290,1763675975499,-500.0,0.00052328,120]
[394537291,1763675975536,-153.41967155,0.00052328,120]
[394537292,1763675975570,-500.0,0.00052328,120]
[394537293,1763675975602,-500.0,0.00052328,120]
[394537294,1763675975633,-318.59314876,0.00052328,120]
[394537295,1763675975665,-400.0,0.00052328,120]
[394537296,1763675975696,-500.0,0.00052328,120]
[394537297,1763675975727,-500.0,0.00052328,120]
[394537298,1763675975757,-447.1,0.00052328,120]
[394537299,1763675975788,-500.0,0.00052328,120]
[394537300,1763675975817,-500.0,0.00052328,120]
[394537301,1763675975848,-500.0,0.00052328,120]
[394537302,1763675975878,-500.0,0.00052328,120]
[394537303,1763675975908,-628.03,0.00052328,30]
[394537304,1763675975939,-500.0,0.00052328,120]
[394537305,1763675975970,-500.0,0.00052328,120]
[394537306,1763675976001,-500.0,0.00052328,120]
[394537307,1763675976033,-500.0,0.00052328,120]
[394537308,1763675976069,-500.0,0.00052328,120]
[394537309,1763675976105,-500.0,0.00052328,30]
[394537310,1763675976143,-500.0,0.00052328,120]
[394537311,1763675976179,-500.0,0.00052328,120]
[394537312,1763675976214,-500.0,0.00052328,60]
[394537313,1763675976249,-562.69,0.00052328,120]
[394537314,1763675976284,-500.0,0.00052328,120]
[394537315,1763675976317,-500.0,0.00052328,120]
[394537316,1763675976355,-510.1,0.00052328,120]
[394537317,1763675976389,-539.33,0.00052328,120]
[394537318,1763675976425,-500.0,0.00052328,120]
[394537319,1763675976458,-500.0,0.00052328,120]
[394537320,1763675976491,-442.17,0.00052328,120]
[394537321,1763675976523,-500.0,0.00052328,120]
[394537322,1763675976558,-553.08,0.00052328,120]
[394537323,1763675976592,-500.0,0.00052328,120]
[394537324,1763675976626,-500.0,0.00052328,120]
[394537325,1763675976659,-265.29209406,0.00052328,120]
[394537326,1763675976691,-833.33,0.00052328,120]
[394537327,1763675976723,-599.41474813,0.00052328,120]
[394537328,1763675976754,-500.0,0.00052328,120]
[394537329,1763675976784,-500.0,0.00052328,120]
[394537330,1763675976816,-500.0,0.00052328,120]
[394537331,1763675976851,-500.0,0.00052328,120]
[394537332,1763675976884,-500.0,0.00052328,120]
[394537333,1763675976917,-150.88041252,0.00052328,120]
[394537334,1763675976949,-340.19680371,0.00052328,120]
[394537335,1763675976979,-156.02332051,0.00052328,120]
[394537336,1763675977009,-500.0,0.00052328,120]
[394537337,1763675977040,-316.93314487,0.00052328,120]
[394537338,1763675977071,-500.0,0.00052328,120]
[394537339,1763675977102,-500.0,0.00052328,120]
[394537340,1763675977134,-433.56868424,0.00052328,120]
[394537341,1763675977167,-500.0,0.00052328,120]
[394537342,1763675977199,-500.0,0.00052328,120]
[394537343,1763675977232,-500.0,0.00052328,120]
[394537344,1763675977265,-500.0,0.00052328,120]
[394537345,1763675977298,-500.0,0.00052328,120]
[394537346,1763675977333,-361.89,0.00052328,120]
[394537347,1763675977366,-300.0,0.00052328,120]
[394537348,1763675977400,-500.0,0.00052328,120]
[394537349,1763675977434,-520.14048596,0.00052328,120]
[394537350,1763675977465,-500.0,0.00052328,120]
[394537351,1763675977497,-580.31098638,0.00052328,120]
[394537352,1763675977529,-500.0,0.00052328,120]
[394537353,1763675977562,-557.82,0.00052328,120]
[394537354,1763675977597,-500.0,0.00052328,120]
[394537355,1763675977628,-500.0,0.00052328,120]
[394537356,1763675977661,-500.0,0.00052328,120]
[394537357,1763675977693,-500.0,0.00052328,120]
[394537358,1763675977724,-233.83,0.00052328,120]
[394537359,1763675977756,-400.0,0.00052328,120]
[394537360,1763675977789,-639.05368306,0.00052328,120]
[394537361,1763675977820,-400.0,0.00052328,120]
[394537362,1763675977987,-400.0,0.00052328,120]
[394537363,1763675978020,-361.79811572,0.00052328,120]
[394537364,1763675978053,-400.0,0.00052328,120]
[394537365,1763675978087,-500.0,0.00052328,120]
[394537366,1763675978121,-326.64470956,0.00052328,120]
[394537367,1763675978155,-500.0,0.00052328,120]
[394537368,1763675978189,-500.0,0.00052328,120]
[394537369,1763675978223,-500.0,0.00052328,120]
[394537370,1763675978259,-500.0,0.00052328,120]
[394537371,1763675978297,-535.06148469,0.00052328,120]
[394537372,1763675978336,-400.0,0.00052328,120]
[394537373,1763675978374,-500.0,0.00052328,120]
[394537374,1763675978410,-240.09,0.00052328,120]
[394537375,1763675978445,-500.0,0.00052328,120]
[394537376,1763675978478,-500.0,0.00052328,120]
[394537377,1763675978511,-567.18259629,0.00052328,120]
[394537378,1763675978543,-307.36,0.00052328,120]
[394537379,1763675978582,-400.0,0.00052328,120]
[394537380,1763675978620,-500.0,0.00052328,120]
[394537381,1763675978655,-413.6585096,0.00052328,120]
[394537382,1763675978690,-349.57880488,0.00052328,120]
[394537383,1763675978728,-323.63214228,0.00052328,120]
[394537384,1763675978762,-500.0,0.00052328,120]
[394537385,1763675978796,-409.99461702,0.00052328,120]
[394537386,1763675978830,-232.32,0.00052328,120]
[394537387,1763675978863,-519.98835898,0.00052328,120]
[394537388,1763675978894,-325.55251559,0.00052328,120]
[394537389,1763675978926,-500.0,0.00052328,120]
[394537390,1763675978957,-500.0,0.00052328,120]
[394537391,1763675978988,-400.0,0.00052328,120]
[394537392,1763675979031,-511.16213208,0.00052328,120]
[394537393,1763675979071,-389.21470139,0.00052328,120]
[394537394,1763675979108,-500.0,0.00052328,120]
[394537395,1763675979145,-500.0,0.00052328,120]
[394537396,1763675979183,-400.0,0.00052328,120]
[394537397,1763675979222,-412.9153122,0.00052328,120]
[394537398,1763675979268,-213.68283379,0.00052328,120]
[394537399,1763675979303,-600.76,0.00052328,120]
[394537400,1763675979341,-500.0,0.00052328,120]
[394537401,1763675979376,-191.06938647,0.00052328,120]
[394537402,1763675979412,-300.0,0.00052328,120]
[394537403,1763675979447,-427.9,0.00052328,120]
[394537404,1763675979482,-500.0,0.00052328,120]
[394537405,1763675979516,-500.0,0.00052328,120]
[394537406,1763675979555,-500.0,0.00052328,120]
[394537407,1763675979591,-500.0,0.00052328,120]
[394537408,1763675979627,-248.83692013,0.00052328,120]
[394537409,1763675979662,-358.72754102,0.00052328,120]
[394537410,1763675979698,-300.0,0.00052328,120]
[394537411,1763675979731,-292.24509053,0.00052328,120]
[394537412,1763675979765,-500.0,0.00052328,120]
[394537413,1763675979797,-161.52,0.00052328,120]
[394537414,1763675979830,-199.61,0.00052328,120]
[394537415,1763675979863,-172.08202909,0.00052328,120]
[394537416,1763675979896,-500.0,0.00052328,120]
[394537417,1763675979928,-421.02831623,0.00052328,120]
[394537418,1763675979960,-450.23842466,0.00052328,120]
[394537419,1763675979992,-556.07,0.00052328,120]
[394537420,1763675980023,-500.0,0.00052328,120]
[394537421,1763675980056,-500.0,0.00052328,120]
[394537422,1763675980092,-300.0,0.00052328,120]
[394537423,1763675980124,-350.78,0.00052328,120]
[394537424,1763675980159,-756.25,0.00052328,120]
[394537425,1763675980194,-890.42,0.00052328,120]
[394537426,1763675980227,-444.85085435,0.00052328,120]
[394537427,1763675980262,-611.79,0.00052328,120]
[394537428,1763675980297,-500.0,0.00052328,120]
[394537429,1763675980334,-520.21,0.00052328,120]
[394537430,1763675980368,-552.50180802,0.00052328,120]
[394537431,1763675980405,-500.0,0.00052328,120]
[394537432,1763675980440,-300.0,0.00052328,120]
[394537433,1763675980474,-500.0,0.00052328,120]
[394537434,1763675980508,-500.0,0.00052328,120]
[394537435,1763675980542,-163.08148001,0.00052328,120]
[394537436,1763675980731,-500.0,0.00052328,120]
[394537437,1763675980766,-500.0,0.00052328,120]
[394537438,1763675980802,-400.0,0.00052328,120]
[394537439,1763675980837,-500.0,0.00052328,120]
[394537440,1763675980868,-484.09895513,0.00052328,120]
[394537441,1763675980901,-625.1692884,0.00052328,120]
[394537442,1763675980934,-500.0,0.00052328,120]
[394537443,1763675980966,-500.0,0.00052328,120]
[394537444,1763675980997,-500.0,0.00052328,120]
[394537445,1763675981028,-515.10290092,0.00052328,120]
[394537446,1763675981061,-500.0,0.00052328,120]
[394537447,1763675981096,-500.0,0.00052328,120]
[394537448,1763675981133,-500.0,0.00052328,120]
[394537449,1763675981166,-565.65,0.00052328,120]
[394537450,1763675981198,-500.0,0.00052328,120]
[394537451,1763675981231,-500.0,0.00052328,120]
[394537452,1763675981266,-408.77,0.00052328,120]
[394537453,1763675981298,-500.0,0.00052328,120]
[394537454,1763675981331,-500.0,0.00052328,120]
[394537455,1763675981363,-314.48,0.00052328,120]
[394537456,1763675981398,-515.45338616,0.00052328,120]
[394537457,1763675981430,-500.0,0.00052328,120]
[394537458,1763675981463,-352.85,0.00052328,120]
[394537459,1763675981495,-548.46713114,0.00052328,120]
[394537460,1763675981526,-444.77811062,0.00052328,120]
[394537461,1763675981561,-400.0,0.00052328,120]
[394537462,1763675981595,-500.0,0.00052328,120]
[394537463,1763675981626,-500.0,0.00052328,120]
[394537464,1763675981656,-500.0,0.00052328,120]
[394537465,1763675981687,-408.41,0.00052328,120]
[394537466,1763675981719,-374.61057174,0.00052328,120]
[394537467,1763675981750,-500.0,0.00052328,120]
[394537468,1763675981782,-500.0,0.00052328,120]
[394537469,1763675981815,-551.57,0.00052328,120]
[394537470,1763675981846,-500.0,0.00052328,120]
[394537471,1763675981876,-401.86398859,0.00052328,120]
[394537472,1763675981908,-400.0,0.00052328,120]
[394537473,1763675981939,-300.0,0.00052328,120]
[394537474,1763675981973,-500.0,0.00052328,120]
[394537475,1763675982006,-500.0,0.00052328,120]
[394537476,1763675982039,-300.0,0.00052328,120]
[394537477,1763675982072,-500.0,0.00052328,120]
[394537478,1763675982104,-300.0,0.00052328,120]
[394537479,1763675982137,-300.0,0.00052328,120]
[394537480,1763675982175,-278.18,0.00052328,120]
[394537481,1763675982209,-406.38,0.00052328,120]
[394537482,1763675982243,-470.77642838,0.00052328,120]
[394537483,1763675982281,-500.0,0.00052328,120]
[394537484,1763675982317,-336.06,0.00052328,120]
[394537485,1763675982356,-400.0,0.00052328,120]
[394537486,1763675982392,-400.0,0.00052328,120]
[394537487,1763675982430,-341.62,0.00052328,120]
[394537488,1763675982463,-400.0,0.00052328,120]
[394537489,1763675982496,-332.44388916,0.00052328,120]
[394537490,1763675982530,-500.0,0.00052328,120]
[394537491,1763675982564,-331.09375693,0.00052328,120]
[394537492,1763675982596,-500.0,0.00052328,120]
[394537493,1763675982627,-300.0,0.00052328,120]
[394537494,1763675982660,-300.0,0.00052328,120]
[394537495,1763675982693,-376.19,0.00052328,120]
[394537496,1763675982726,-552.1,0.00052328,120]
[394537497,1763675982757,-373.80713959,0.00052328,120]
[394537498,1763675982789,-500.0,0.00052328,120]
[394537499,1763675982822,-400.0,0.00052328,120]
[394537500,1763675982854,-500.0,0.00052328,120]
[394537501,1763675982887,-499.0455698,0.00052328,120]
[394537502,1763675982919,-500.0,0.00052328,120]
[394537503,1763675982950,-365.1,0.00052328,120]
[394537504,1763675982982,-323.35509169,0.00052328,120]
[394537505,1763675983015,-487.02706466,0.00052328,120]
[394537506,1763675983048,-563.85008088,0.00052328,120]
[394537507,1763675983221,-411.32,0.00052328,120]
[394537508,1763675983265,-500.0,0.00052328,120]
[394537509,1763675983304,-500.0,0.00052328,120]
[394537510,1763675983344,-500.0,0.00052328,120]
[394537511,1763675983383,-500.0,0.00052328,120]
[394537512,1763675983423,-500.0,0.00052328,120]
[394537513,1763675983458,-500.0,0.00052328,120]
[394537514,1763675983492,-211.42618742,0.00052328,120]
[394537515,1763675983524,-500.0,0.00052328,120]
[394537516,1763675983558,-300.0,0.00052328,120]
[394537517,1763675983594,-330.50663311,0.00052328,120]
[394537518,1763675983632,-500.0,0.00052328,120]
[394537519,1763675983666,-500.0,0.00052328,120]
[394537520,1763675983699,-300.0,0.00052328,120]
[394537521,1763675983731,-300.0,0.00052328,120]
[394537522,1763675983763,-570.94,0.00052328,120]
[394537523,1763675983796,-300.0,0.00052328,120]
[394537524,1763675983828,-500.0,0.00052328,120]
[394537525,1763675983860,-500.0,0.00052328,30]
[394537526,1763675983892,-153.0,0.000524,120]
[394537527,1763675983924,-206.59519,0.00052418,120]
[394537528,1763675983955,-500.0,0.00052602,120]
[394537529,1763675983988,-500.0,0.00052602,120]
[394537530,1763675984020,-500.0,0.00052602,120]
[394537531,1763675984052,-500.0,0.00052602,120]
[394537532,1763675984085,-500.0,0.00052602,120]
[394537533,1763675984120,-761.49,0.00052602,120]
[394537534,1763675984157,-500.0,0.00052602,120]
[394537535,1763675984195,-463.59628242,0.00052602,120]
[394537536,1763675984233,-416.15620773,0.00052602,120]
[394537537,1763675984271,-500.0,0.00052602,120]
[394537538,1763675984308,-512.33002362,0.00052602,120]
[394537539,1763675984342,-364.02,0.00052602,120]
[394537540,1763675984377,-500.0,0.00052602,120]
[394537541,1763675984412,-500.0,0.00052602,120]
[394537542,1763675984446,-227.63866171,0.00052602,120]
[394537543,1763675984478,-539.63544991,0.00052602,120]
[394537544,1763675984509,-617.35,0.00052602,120]
[394537545,1763675984541,-228.21,0.00052602,120]
[394537546,1763675984573,-241.53375004,0.00052602,120]
[394537547,1763675984603,-565.5,0.00052602,120]
[394537548,1763675984634,-500.0,0.00052602,120]
[394537549,1763675984670,-456.28,0.00052602,120]
[394537550,1763675984702,-324.3176766,0.00052602,120]
[394537551,1763675984735,-464.88,0.00052602,120]
[394537552,1763675984766,-312.56322079,0.00052602,120]
[394537553,1763675984796,-500.0,0.00052602,120]
[394537554,1763675984826,-188.62452051,0.00052602,120]
[394537555,1763675984856,-402.35841836,0.00052602,120]
[394537556,1763675984886,-295.23,0.00052602,120]
[394537557,1763675984918,-500.0,0.00052602,120]
[394537558,1763675984952,-500.0,0.00052602,120]
[394537559,1763675984984,-500.0,0.00052602,120]
[394537560,1763675985015,-500.0,0.00052602,120]
[394537561,1763675985046,-500.0,0.00052602,120]
[394537562,1763675985079,-431.79273674,0.00052602,120]
[394537620,1763676170017,426.43191686,0.00035616,120]
[394537621,1763676189363,2486.48,8.149e-05,2]